bitfinex-derivatives/quotes_ETHF0:USTF0_20250929
["timestamp","ask_amount","ask_price","bid_price","bid_amount"]
[1759138789530,0.7349,4140.9,4140.8,0.7711]
[1759138792231,0.3076,4140.8,4140.6,0.43456]
[1759138792427,0.8577,4140.5,4140.4,0.43636704]
[1759138793334,0.8577,4140.5,4140.4,0.64786704]
[1759138794133,1.1037,4140.5,4140.4,0.64786704]
[1759138795131,0.9809,4140.5,4140.4,1.18236704]
[1759138795330,0.8619,4141.0,4140.9,0.64713]
[1759138795636,1.60475701,4141.0,4140.9,0.2126]
[1759138795834,1.60475701,4141.0,4140.8,0.43454]
[1759138796132,1.23608789,4140.9,4140.8,0.43454]
[1759138796333,0.7391,4140.9,4140.8,0.43454]
[1759138797031,0.7391,4140.1,4140.0,3.42227704]
[1759138797230,0.9851,4140.1,4140.0,2.44534704]
[1759138797632,0.9851,4140.1,4140.0,2.65794704]
[1759138797833,0.9851,4140.1,4140.0,3.09257704]
[1759138798131,0.9851,4140.1,4140.0,2.6610035]
[1759138798330,0.9851,4140.1,4140.0,0.65028646]
[1759138799438,0.6775,4140.1,4140.0,1.31418646]
[1759138800140,3.64237,4140.6,4140.5,0.6717]
[1759138800438,3.2078,4140.6,4140.5,1.31108]
[1759138800838,3.4538,4140.6,4140.5,1.31108]
[1759138801038,3.2078,4140.6,4140.5,1.31108]
[1759138801233,3.4538,4140.6,4140.5,1.31108]
[1759138801632,3.2078,4140.6,4140.5,1.31108]
[1759138802033,3.4538,4140.6,4140.5,1.31108]
[1759138804039,3.95138749,4140.6,4140.5,1.31108]
[1759138804349,4.38595749,4140.6,4140.5,0.8765]
[1759138804542,3.95138749,4140.6,4140.1,0.3297]
[1759138804844,0.43461,4140.2,4140.1,0.3297]
[1759138805147,0.68061,4140.2,4140.1,0.3297]
[1759138806645,0.68061,4140.2,4140.1,0.97692]
[1759138807951,0.68061,4140.2,4140.1,0.5423]
[1759138808447,0.68061,4140.2,4140.1,0.3297]
[1759138808637,1.17832808,4140.2,4140.1,0.3297]
[1759138808842,0.49771808,4140.2,4140.1,0.3297]
[1759138809041,0.93232808,4140.2,4140.1,0.5415]
[1759138809250,1.17832808,4140.2,4140.1,0.7463]
[1759138809454,1.17832808,4140.2,4140.1,0.5415]
[1759138809653,1.17832808,4140.2,4140.1,0.3289]
[1759138810451,1.17832808,4140.2,4140.0,0.13245646]
[1759138810452,0.43462,4140.1,4140.0,0.13245646]
[1759138810761,4.14010813,4140.1,4140.0,0.13245646]
[1759138810948,4.14010813,4140.1,4140.0,0.00305646]
[1759138811150,0.0179,4139.3,4138.8,4.50708809]
[1759138811357,0.2746,4139.2,4139.1,0.7471]
[1759138811748,0.2746,4139.2,4139.1,1.18182]
[1759138811749,0.3032,4139.2,4139.1,1.18182]
[1759138812156,0.75581,4139.2,4139.1,0.33281096]
[1759138812360,0.73791,4139.2,4139.1,0.33281096]
[1759138812860,0.97506619,4139.2,4139.1,0.00311096]
[1759138813159,1.47261985,4139.2,4139.1,0.33281096]
[1759138813355,1.47261985,4139.2,4139.1,0.00311096]
[1759138813750,6.47261985,4139.2,4139.1,0.00311096]
[1759138814460,0.49238,4138.6,4138.5,0.4446]
[1759138814757,0.75638,4138.6,4138.5,0.4446]
[1759138815249,0.5104,4138.4,4138.3,0.3152]
[1759138815448,0.4924,4138.4,4138.3,0.52174373]
[1759138815655,0.49531603,4138.4,4138.3,0.52174373]
[1759138816253,0.51331603,4138.4,4138.3,0.31744373]
[1759138816749,0.49531603,4138.4,4138.3,0.31744373]
[1759138817663,0.06051603,4138.4,4138.3,0.31744373]
[1759138817865,0.30651603,4138.4,4138.3,0.72914373]
[1759138819666,0.00291603,4138.4,4138.3,0.72914373]
[1759138819964,0.00291603,4138.4,4138.3,5.72914373]
[1759138820264,0.00291603,4138.4,4138.3,6.16395373]
[1759138823771,0.00291603,4138.4,4138.3,1.16395373]
[1759138823970,0.00291603,4138.4,4138.3,1.16315373]
[1759138824368,0.06311603,4138.4,4138.3,1.16315373]
[1759138824968,0.49791603,4138.4,4138.3,0.72834373]
[1759138825273,0.49791603,4138.4,4138.3,1.16315373]
[1759138825670,0.49791603,4138.4,4138.3,0.52094373]
[1759138825973,0.51671603,4138.4,4138.3,0.31664373]
[1759138826365,0.49791603,4138.4,4138.3,0.31664373]
[1759138826672,5.51671603,4138.4,4138.3,0.00224373]
[1759138826866,5.51671603,4138.4,4138.3,0.31894373]
[1759138827374,46.31671603,4138.4,4138.3,0.31894373]
[1759138827665,46.29791603,4138.4,4138.3,0.31894373]
[1759138827870,46.29791603,4138.4,4138.3,0.96785373]
[1759138828072,46.54391603,4138.4,4138.3,0.96785373]
[1759138830178,46.54391603,4138.4,4138.3,0.53304373]
[1759138830570,46.54391603,4138.4,4138.3,0.31894373]
[1759138830978,46.54391603,4138.4,4138.3,0.75375373]
[1759138831770,46.10911603,4138.4,4138.3,0.75375373]
[1759138832074,46.54391603,4138.4,4138.3,0.75375373]
[1759138832966,46.56271603,4138.4,4138.3,0.00224373]
[1759138834267,47.05944231,4138.4,4138.3,0.00224373]
[1759138835177,0.079,4138.0,4137.9,0.3167]
[1759138835475,1.25656628,4138.0,4137.9,0.3167]
[1759138835975,1.23776628,4138.0,4137.9,0.3167]
[1759138836272,1.23776628,4138.0,4137.9,0.31855329]
[1759138837278,1.25656628,4138.0,4137.9,0.00185329]
[1759138837679,1.23776628,4138.0,4137.9,0.53265329]
[1759138838475,1.25656628,4138.0,4137.9,0.00185329]
[1759138838679,1.1706,4137.5,4137.4,0.2141]
[1759138838979,1.4166,4137.5,4137.4,0.2141]
[1759138839684,1.4166,4137.5,4137.4,0.65204027]
[1759138840569,1.91449324,4137.5,4137.4,0.21714027]
[1759138840769,5.23629324,4137.5,4137.4,0.43794027]
[1759138841171,5.23629324,4137.5,4137.4,0.00304027]
[1759138845172,1.17065,4136.9,4136.7,3.2078]
[1759138845377,1.17065,4136.9,4136.2,1.08757]
[1759138845378,0.7357,4136.6,4136.5,0.96579]
[1759138845675,0.9817,4136.6,4136.5,0.96579]
[1759138845878,1.41669,4136.6,4136.5,0.5308]
[1759138846084,2.13289943,4136.6,4136.5,0.53388447]
[1759138846381,2.13289943,4136.6,4136.5,0.96888447]
[1759138846783,1.69790943,4136.6,4136.5,0.96888447]
[1759138846981,2.13289943,4136.6,4136.5,0.53388447]
[1759138847183,1.69790943,4136.6,4136.5,0.96888447]
[1759138847683,1.69790943,4136.6,4136.5,1.17648447]
[1759138847985,2.13289943,4136.6,4136.5,1.17648447]
[1759138848184,2.13289943,4136.6,4136.5,1.30858447]
[1759138850688,1.91462337,4136.6,4136.5,1.30858447]
[1759138851183,2.13822488,4136.6,4136.5,0.96888447]
[1759138851991,2.13822488,4136.6,4136.5,0.43808447]
[1759138852489,2.13822488,4136.6,4136.5,0.96888447]
[1759138858286,1.16952,4136.3,4136.2,0.37529447]
[1759138858483,4.62232,4136.3,4136.2,0.65393]
[1759138858988,4.1873,4136.3,4136.2,0.65393]
[1759138859189,4.1873,4136.3,4136.2,0.65590398]
[1759138859386,4.62232,4136.3,4136.2,0.65590398]
[1759138859882,4.62232,4136.3,4136.2,0.00197398]
[1759138860092,5.11847241,4136.3,4136.2,0.00197398]
[1759138861288,45.91847241,4136.3,4136.2,0.00197398]
[1759138862480,0.4267,4135.9,4135.8,0.43508]
[1759138862684,1.41457,4135.9,4135.8,0.43508]
[1759138863488,1.41457,4135.9,4135.8,0.43760747]
[1759138864493,1.91115643,4135.9,4135.8,0.43760747]
[1759138864989,0.86179,4135.7,4135.6,1e-05]
[1759138865188,1.60342858,4135.7,4135.6,1e-05]
[1759138865779,0.4267,4135.1,4135.0,0.3242]
[1759138865990,0.67342589,4135.1,4135.0,0.54608488]
[1759138866188,0.98122589,4135.1,4135.0,0.54608488]
[1759138866782,0.98122589,4135.1,4135.0,1.20244488]
[1759138867792,0.73622589,4135.1,4135.0,1.20244488]
[1759138868000,0.98122589,4135.1,4135.0,1.33414488]
[1759138869492,0.98122589,4135.1,4135.0,0.54608488]
[1759138869795,0.46032589,4135.1,4135.0,1.33415488]
[1759138870198,0.76812589,4135.1,4135.0,1.33415488]
[1759138875397,1.91361077,4135.1,4135.0,0.00298488]
[1759138875592,0.7199,4134.6,4134.4,0.31091942]
[1759138875899,1.15511,4134.6,4134.5,0.2139]
[1759138876099,5.10523619,4134.6,4134.5,0.2139]
[1759138876488,0.413,4134.1,4134.0,0.43526]
[1759138876695,0.8449,4134.0,4133.4,4.29612]
[1759138876895,0.8449,4134.0,4133.9,0.2139]
[1759138877093,0.7199,4133.7,4133.6,0.6492]
[1759138877292,0.9649,4133.7,4133.6,0.8592]
[1759138877494,0.9649,4133.7,4133.6,0.86126869]
[1759138880100,0.5519,4133.7,4133.6,1.19736869]
[1759138880294,0.25003168,4133.9,4133.8,0.43529]
[1759138880495,0.4485,4133.9,4133.8,0.85919]
[1759138880701,0.4485,4133.9,4133.8,1.19529]
[1759138880902,0.7554,4133.9,4133.8,1.19529]
[1759138882498,1.40018,4133.9,4133.8,0.4239]
[1759138882694,0.7199,4133.7,4133.6,0.00206869]
[1759138883003,1.1552,4133.7,4133.6,0.00206869]
[1759138883598,0.7199,4133.3,4133.2,0.2139]
[1759138883899,4.1727,4133.3,4133.2,0.64925]
[1759138884102,4.1727,4133.3,4133.2,0.85925]
[1759138884606,4.1727,4133.3,4133.2,0.86101584]
[1759138885806,4.1727,4133.3,4133.2,0.65101584]
[1759138886402,3.9277,4133.3,4133.2,1.18991584]
[1759138886602,4.1727,4133.3,4133.2,1.18991584]
[1759138887305,4.1727,4133.3,4133.2,0.87431584]
[1759138888106,4.1727,4133.3,4133.2,1.18991584]
[1759138888605,4.1727,4133.3,4133.2,0.65101584]
[1759138889006,3.9277,4133.3,4133.2,0.65101584]
[1759138889306,4.1727,4133.3,4133.2,0.65101584]
[1759138891499,4.1727,4133.3,4133.2,0.00176584]
[1759138891703,4.1727,4133.3,4133.2,0.43711584]
[1759138894602,4.1727,4133.3,4133.2,0.65691584]
[1759138895009,4.1727,4133.3,4133.2,0.43711584]
[1759138896104,4.60804,4133.3,4133.2,0.43711584]
[1759138897502,4.60804,4133.3,4133.2,0.00176584]
[1759138897706,5.10417189,4133.3,4133.2,0.00176584]
[1759138899102,45.90417189,4133.3,4133.2,0.00176584]
[1759138901304,45.90417189,4133.3,4133.2,0.43711584]
[1759138903513,45.90417189,4133.3,4133.2,0.00176584]
[1759138904511,45.90417189,4133.3,4133.2,0.43711584]
[1759138904916,45.90417189,4133.3,4133.2,0.00176584]
[1759138905914,0.43537,4133.0,4132.9,0.45957638]
[1759138906115,1.57497,4133.0,4132.9,0.02419638]
[1759138906419,1.63573189,4133.0,4132.9,0.45957638]
[1759138906914,1.63573189,4133.0,4132.9,0.46268524]
[1759138907117,2.07110189,4133.0,4132.9,0.46268524]
[1759138907414,2.07110189,4133.0,4132.9,0.02730524]
[1759138907918,1.39073189,4133.0,4132.9,0.78600524]
[1759138908110,1.63573189,4133.0,4132.9,0.78600524]
[1759138908310,0.49613189,4133.0,4132.9,0.78600524]
[1759138908515,0.49823204,4133.2,4133.1,1.19406]
[1759138908719,0.74323204,4133.2,4133.1,1.19406]
[1759138910521,0.245,4133.2,4133.1,6.19406]
[1759138911716,0.7967,4133.2,4133.1,1.19406]
[1759138912221,1.29528542,4133.2,4133.1,1.19406]
[1759138912420,0.7967,4133.2,4133.1,1.19406]
[1759138914731,1.29518731,4133.2,4133.1,1.19406]
[1759138915130,1.50978731,4133.2,4133.1,1.19406]
[1759138915632,1.50978731,4133.2,4133.1,0.87846]
[1759138916233,1.50978731,4133.2,4133.1,1.19206]
[1759138918232,0.49848731,4133.2,4133.1,1.19206]
[1759138918433,3.2078,4133.3,4133.2,0.74895]
[1759138918738,4.28535026,4133.3,4133.2,1.19055]
[1759138919038,3.95115026,4133.3,4133.2,1.19055]
[1759138920232,3.4528,4133.3,4133.2,1.19055]
[1759138920939,0.245,4133.3,4133.2,1.19055]
[1759138921331,0.5792,4133.3,4133.2,1.19055]
[1759138923238,0.8026,4133.3,4133.2,1.19055]
[1759138923434,1.0265,4133.3,4133.2,0.87695]
[1759138923639,1.0265,4133.3,4133.2,0.43535]
[1759138923840,1.52468439,4133.3,4133.2,0.43535]
[1759138924736,1.0265,4133.3,4133.2,0.43535]
[1759138927542,1.9600072,4133.3,4133.2,0.43535]
[1759138927744,1.5246672,4133.3,4133.2,0.43535]
[1759138928337,1.9600072,4133.3,4133.2,0.43535]
[1759138928536,1.5246672,4133.3,4133.2,0.43535]
[1759138928933,1.9600072,4133.3,4133.2,0.43535]
[1759138929136,1.34167,4133.0,4132.9,0.02730524]
[1759138929337,0.5721,4132.5,4132.4,3.11320524]
[1759138929533,1.1513,4132.5,4132.4,3.54864524]
[1759138929841,1.1513,4132.5,4132.4,3.76904524]
[1759138930443,1.1513,4132.5,4132.4,3.77113377]
[1759138932638,1.1513,4132.5,4132.4,0.43752853]
[1759138933048,1.58673,4132.5,4132.4,0.43752853]
[1759138933340,2.08497894,4132.5,4132.4,0.43752853]
[1759138934041,1.64954894,4132.5,4132.4,0.43752853]
[1759138935842,2.08496894,4132.5,4132.4,0.43752853]
[1759138938649,1.64954894,4132.5,4132.4,0.43752853]
[1759138940244,1.64954894,4132.5,4132.4,0.65352853]
[1759138940750,1.64954894,4132.5,4132.4,0.43752853]
[1759138940951,2.08496894,4132.5,4132.4,0.43752853]
[1759138941546,2.08496894,4132.5,4132.4,0.65352853]
[1759138941747,1.64954894,4132.5,4132.4,0.65352853]
[1759138942445,2.08497894,4132.5,4132.4,0.65352853]
[1759138942651,2.08497894,4132.5,4132.4,0.43752853]
[1759138943854,1.83997894,4132.5,4132.4,0.43752853]
[1759138944054,2.08497894,4132.5,4132.4,0.43752853]
[1759138946357,1.64954894,4132.5,4132.4,0.43752853]
[1759138948252,1.40454894,4132.5,4132.4,0.65222853]
[1759138948453,1.64954894,4132.5,4132.4,0.65222853]
[1759138950252,1.64954894,4132.5,4132.4,0.43752853]
[1759138950454,2.08497894,4132.5,4132.4,0.43752853]
[1759138951054,1.83997894,4132.5,4132.4,0.43752853]
[1759138951257,2.08497894,4132.5,4132.4,0.43752853]
[1759138952855,1.64954894,4132.5,4132.4,0.43752853]
[1759138953353,2.08496894,4132.5,4132.4,0.43752853]
[1759138954755,1.64954894,4132.5,4132.4,0.43752853]
[1759138954952,2.08497894,4132.5,4132.4,0.43752853]
[1759138956855,1.18064894,4132.5,4132.4,1.19562853]
[1759138957061,1.30084894,4132.5,4132.4,1.19562853]
[1759138957261,1.42804894,4132.5,4132.4,1.19562853]
[1759138957554,1.51434894,4132.5,4132.4,1.19562853]
[1759138957857,0.49824894,4132.5,4132.4,1.19562853]
[1759138958057,0.245,4132.5,4132.4,6.19562853]
[1759138958765,0.5695,4132.5,4132.4,6.19562853]
[1759138959563,0.5695,4132.5,4132.4,1.19562853]
[1759138960465,2.06658081,4132.5,4132.4,0.00208853]
[1759138961664,1.63116081,4132.5,4132.4,0.43752853]
[1759138962058,2.06658081,4132.5,4132.4,0.43752853]
[1759138962365,1.63116081,4132.5,4132.4,0.43752853]
[1759138962760,2.06658081,4132.5,4132.4,0.43752853]
[1759138964162,1.63116081,4132.5,4132.4,0.43752853]
[1759138964662,2.06658081,4132.5,4132.4,0.00208853]
[1759138965566,0.2135,4131.8,4131.7,0.43549]
[1759138965766,1.50396081,4131.8,4131.7,0.43549]
[1759138966161,1.50396081,4131.8,4131.3,4.50708809]
[1759138966367,0.5461,4131.4,4131.3,5.26518809]
[1759138966568,0.76186407,4131.4,4131.3,5.37948149]
[1759138966768,0.76186407,4131.4,4131.3,0.6531934]
[1759138966769,1.26135435,4131.4,4131.3,0.6531934]
[1759138967471,1.26135435,4131.4,4131.3,1.1965934]
[1759138968166,1.26135435,4131.4,4130.8,5.59608809]
[1759138968359,0.1272,4130.0,4128.6,0.43583]
[1759138968561,3.2078,4128.9,4128.8,0.4339]
[1759138968862,3.95391764,4128.9,4128.8,0.4339]
[1759138969275,3.95391764,4128.9,4128.8,0.43629411]
[1759138969771,4.50001764,4128.9,4128.8,0.43629411]
[1759138970268,4.50001764,4128.9,4128.8,0.77905914]
[1759138970465,4.71351764,4128.9,4128.8,0.45485914]
[1759138971066,4.71351764,4128.9,4128.8,0.43629411]
[1759138971367,4.71351764,4128.9,4128.8,0.46664704]
[1759138972069,4.46651764,4128.9,4128.8,0.46746029]
[1759138972270,4.71351764,4128.9,4128.8,0.46746029]
[1759138972466,4.71351764,4128.9,4128.8,0.46827354]
[1759138972765,4.46651764,4128.9,4128.8,0.46827354]
[1759138972970,4.71351764,4128.9,4128.8,0.79247354]
[1759138973270,4.25301764,4128.9,4128.8,0.79247354]
[1759138973470,4.50001764,4128.9,4128.8,0.79247354]
[1759138974068,4.50001764,4128.9,4128.8,0.79328679]
[1759138974377,4.71351764,4128.9,4128.8,0.79328679]
[1759138975074,4.71351764,4128.9,4128.8,0.79363135]
[1759138978880,4.71351764,4128.9,4128.8,0.46943135]
[1759138979977,5.14931764,4128.9,4128.8,0.03553135]
[1759138980977,0.7405,4128.3,4128.2,0.65977]
[1759138981276,0.8648,4128.0,4127.9,1.20103569]
[1759138981469,1.1118,4128.0,4127.9,0.88953569]
[1759138981868,1.11379612,4128.0,4127.9,0.88953569]
[1759138982167,1.11379612,4128.0,4127.9,0.89234884]
[1759138982568,1.54969612,4128.0,4127.9,0.45643884]
[1759138982773,2.22514059,4128.0,4127.9,0.45643884]
[1759138983070,2.22514059,4128.0,4127.9,0.89234884]
[1759138983271,2.22514059,4128.0,4127.9,0.02703884]
[1759138984072,2.22514059,4128.0,4127.9,0.03881481]
[1759138984571,0.5302,4127.2,4127.1,3.9487]
[1759138984776,0.5302,4127.2,4127.1,4.38469]
[1759138985370,0.7405,4127.2,4127.1,4.38706484]
[1759138985570,0.7405,4127.2,4127.1,1.17926484]
[1759138986380,1.41564719,4127.2,4127.1,1.17926484]
[1759138988274,1.20534719,4127.2,4127.1,1.17926484]
[1759138989973,1.41564719,4127.2,4127.1,0.22627484]
[1759138990177,1.41564719,4127.2,4127.1,0.00237484]
[1759138990681,1.85162719,4127.2,4127.1,0.00237484]
[1759138991280,1.66264719,4127.2,4127.1,1.17926484]
[1759138991769,1.41564719,4127.2,4127.1,1.17926484]
[1759138991971,1.66264719,4127.2,4127.1,1.17926484]
[1759138992174,1.45234719,4127.2,4127.1,1.17926484]
[1759138993176,1.20534719,4127.2,4127.1,1.17926484]
[1759138993371,0.67514719,4127.2,4127.1,1.17926484]
[1759138993771,1.00154719,4127.2,4127.1,1.17926484]
[1759138994283,1.22364719,4127.2,4127.1,1.17926484]
[1759138994779,1.00154719,4127.2,4127.1,1.17926484]
[1759138995078,0.67514719,4127.2,4127.1,1.17926484]
[1759138995282,0.67514719,4127.2,4127.1,6.17926484]
[1759138996982,1.44384719,4127.2,4127.1,0.43836484]
[1759138999479,0.7687,4127.2,4127.1,0.43836484]
[1759138999675,1.38613587,4127.2,4127.1,0.43836484]
[1759139000486,1.38613587,4127.2,4127.1,0.65686484]
[1759139001075,1.38613587,4127.2,4127.1,0.74586484]
[1759139003591,1.38613587,4127.2,4127.1,0.52736484]
[1759139004179,1.38613587,4127.2,4127.1,0.74586484]
[1759139004384,1.38613587,4127.2,4127.1,1.28506484]
[1759139004888,1.38613587,4127.2,4127.1,0.95226484]
[1759139005594,1.38613587,4127.2,4127.1,0.74586484]
[1759139008291,1.38613587,4127.2,4127.1,0.52736484]
[1759139010594,1.38613587,4127.2,4127.1,0.73246484]
[1759139010792,1.38613587,4127.2,4127.1,0.52736484]
[1759139015696,0.7687,4127.2,4127.1,0.52736484]
[1759139015891,1.32265687,4127.2,4127.1,0.52736484]
[1759139016096,1.75863687,4127.2,4127.1,0.52736484]
[1759139016498,1.75863687,4127.2,4127.1,0.09137484]
[1759139017202,1.75863687,4127.2,4127.1,0.52736484]
[1759139017901,1.32265687,4127.2,4127.1,0.52736484]
[1759139018704,1.75863687,4127.2,4127.1,0.52736484]
[1759139019105,1.32265687,4127.2,4127.1,0.52736484]
[1759139019307,1.56865687,4127.2,4127.1,0.52736484]
[1759139020307,2.00463687,4127.2,4127.1,0.52736484]
[1759139020803,1.56865687,4127.2,4127.1,0.52736484]
[1759139021404,2.00463687,4127.2,4127.1,0.09137484]
[1759139021799,2.00463687,4127.2,4127.1,0.52736484]
[1759139023107,1.56865687,4127.2,4127.1,0.52736484]
[1759139023801,2.00463687,4127.2,4127.1,0.52736484]
[1759139024412,1.56865687,4127.2,4127.1,0.52736484]
[1759139024910,2.00463687,4127.2,4127.1,0.52736484]
[1759139027716,1.56865687,4127.2,4127.1,0.52736484]
[1759139028817,1.56865687,4127.2,4127.1,0.73246484]
[1759139029116,1.56865687,4127.2,4127.1,1.06526484]
[1759139029815,1.56865687,4127.2,4127.1,0.73246484]
[1759139030820,1.32265687,4127.2,4127.1,1.27166484]
[1759139031014,1.56865687,4127.2,4127.1,1.27166484]
[1759139033811,1.32265687,4127.2,4127.1,1.27166484]
[1759139034017,1.34845687,4127.2,4127.1,1.27166484]
[1759139034614,1.12635687,4127.2,4127.1,1.27166484]
[1759139034819,0.79995687,4127.2,4127.1,1.27166484]
[1759139035119,1.33465687,4127.2,4127.1,1.27166484]
[1759139035316,1.08865687,4127.2,4127.1,1.27166484]
[1759139035621,3.7827,4127.4,4127.3,0.43597]
[1759139035820,4.5190203,4127.4,4127.3,1.19027]
[1759139037522,4.7321203,4127.4,4127.3,1.19027]
[1759139040024,4.4861203,4127.4,4127.3,1.19027]
[1759139040212,4.7321203,4127.4,4127.3,1.19027]
[1759139042522,4.5190203,4127.4,4127.3,1.19027]
[1759139043323,4.7321203,4127.4,4127.3,1.19027]
[1759139043518,3.7425,4127.4,4127.3,1.19027]
[1759139043820,3.6267,4127.9,4127.8,1.19022]
[1759139044019,4.1516815,4127.9,4127.8,1.19022]
[1759139044225,4.4805815,4127.9,4127.8,1.19022]
[1759139045326,3.9556,4127.9,4127.8,1.19022]
[1759139045729,0.1303,4127.0,4126.5,1.40942]
[1759139045925,0.7478,4126.6,4126.5,1.19035]
[1759139046834,0.7478,4126.6,4126.5,1.19247572]
[1759139052139,0.7478,4126.6,4126.5,0.87317572]
[1759139052347,1.95453173,4126.6,4126.5,0.43817572]
[1759139052537,1.51849173,4126.6,4126.5,0.43817572]
[1759139055150,0.9938,4126.6,4126.5,0.64437572]
[1759139055748,0.9938,4126.6,4126.5,1.16247572]
[1759139056143,0.9938,4126.6,4126.5,0.84847572]
[1759139057147,0.9938,4126.6,4126.5,0.64437572]
[1759139058049,0.9938,4126.6,4126.5,0.43817572]
[1759139058347,0.9938,4126.6,4126.5,0.64437572]
[1759139058650,0.9938,4126.6,4126.5,1.16247572]
[1759139058856,0.7478,4126.6,4126.5,1.16247572]
[1759139059042,0.7807,4126.6,4126.5,1.16247572]
[1759139060042,0.246,4126.6,4126.5,1.26977572]
[1759139060245,3.422,4126.8,4126.7,0.43603]
[1759139060448,3.6392,4126.8,4126.7,1.16033]
[1759139060852,3.9741,4126.8,4126.7,1.16033]
[1759139064754,3.9741,4126.8,4126.7,0.64223]
[1759139064954,3.7599,4126.8,4126.7,1.16973]
[1759139065150,3.5427,4126.8,4126.7,1.16973]
[1759139065750,3.7628,4126.8,4126.7,1.16973]
[1759139066653,3.5427,4126.8,4126.7,1.16973]
[1759139068359,3.7628,4126.8,4126.7,1.16973]
[1759139069960,0.555,4126.8,4126.7,1.16973]
[1759139073663,0.3349,4126.8,4126.7,1.16973]
[1759139074566,0.555,4126.8,4126.7,1.16973]
[1759139075357,1.07963425,4126.8,4126.7,1.16973]
[1759139077566,3.5204,4127.0,4126.9,1.18951]
[1759139078075,3.7405,4127.0,4126.9,1.18951]
[1759139079873,3.9475,4127.0,4126.9,1.18951]
[1759139080368,4.0763,4127.0,4126.9,0.87721]
[1759139080755,3.5204,4127.0,4126.9,1.18951]
[1759139081159,3.2078,4127.0,4126.9,1.43551]
[1759139081370,3.5204,4127.0,4126.9,1.43551]
[1759139083674,3.7405,4127.0,4126.9,1.43551]
[1759139084271,3.7405,4127.0,4126.9,1.18951]
[1759139084473,3.7405,4127.0,4126.9,1.43551]
[1759139086667,0.5327,4127.0,4126.9,1.43551]
[1759139086866,0.7397,4127.0,4126.9,1.43551]
[1759139088175,0.8685,4127.0,4126.9,0.90801]
[1759139088368,0.8685,4127.0,4126.9,0.68201]
[1759139089265,0.8685,4127.0,4126.9,0.43601]
[1759139089465,0.8685,4127.0,4126.9,0.68201]
[1759139089665,0.8685,4127.0,4126.9,0.90801]
[1759139092976,0.6484,4127.0,4126.9,1.43551]
[1759139093177,3.6507,4127.5,4127.4,0.66196]
[1759139093470,3.8708,4127.5,4127.4,1.18946]
[1759139094679,0.663,4127.5,4127.4,1.18946]
[1759139096780,0.8834,4127.5,4127.4,1.18946]
[1759139098376,3.33409612,4128.0,4127.9,0.65311]
[1759139098377,3.77639612,4128.0,4127.9,0.65311]
[1759139098573,4.61414479,4128.0,4127.9,0.65311]
[1759139099769,4.09039612,4128.0,4127.9,0.65311]
[1759139101480,4.09039612,4128.0,4127.9,0.43591]
[1759139107389,4.61421462,4128.0,4127.9,0.43591]
[1759139107986,4.61421462,4128.0,4127.9,0.65311]
[1759139108187,4.09039612,4128.0,4127.9,0.65311]
[1759139108489,4.09039612,4128.0,4127.9,1.20831]
[1759139108991,3.52379612,4128.0,4127.9,1.20831]
[1759139109183,3.74569612,4128.0,4127.9,1.20831]
[1759139110083,0.53789612,4128.0,4127.9,1.20831]
[1759139110588,0.31599612,4128.0,4127.9,1.20831]
[1759139110782,0.00199612,4128.0,4127.9,1.20831]
[1759139111776,0.00199612,4128.0,4127.9,6.20831]
[1759139112791,0.5359,4128.5,4128.4,1.20825]
[1759139113089,0.5359,4128.5,4128.4,1.45325]
[1759139113680,0.53803005,4128.5,4128.4,1.45325]
[1759139114378,4.0923,4129.0,4128.9,1.2125]
[1759139114575,3.9607,4129.0,4128.9,1.4575]
[1759139115385,3.96371548,4129.0,4128.9,1.4575]
[1759139116591,3.96371548,4129.0,4128.9,0.4358]
[1759139116592,4.09531548,4129.0,4128.9,0.4358]
[1759139116792,4.09531548,4129.0,4128.9,0.6808]
[1759139119192,4.09531548,4129.0,4128.9,0.4358]
[1759139121389,3.75811548,4129.0,4128.9,0.4358]
[1759139121589,0.5473,4128.5,4128.4,0.68085]
[1759139121991,0.8845,4128.5,4128.4,0.68085]
[1759139122584,0.8845,4128.5,4128.4,0.90275]
[1759139122790,0.8845,4128.5,4128.4,1.45755]
[1759139125296,0.3372,4128.5,4128.4,1.45755]
[1759139126396,0.5625,4128.5,4128.4,1.45755]
[1759139126995,0.3372,4128.5,4128.4,1.45755]
[1759139127692,4.11091548,4129.0,4128.9,0.6469]
[1759139127899,4.11091548,4129.0,4128.9,1.4335]
[1759139130299,3.2078,4129.6,4129.5,0.87944]
[1759139130499,3.20540589,4129.6,4129.5,1.55924]
[1759139130799,3.64810589,4129.6,4129.5,1.55924]
[1759139131396,3.65120508,4129.6,4129.5,1.12706194]
[1759139131703,3.65120508,4129.6,4129.5,1.00126194]
[1759139131896,3.20850508,4129.6,4129.5,1.56186194]
[1759139132490,3.43380508,4129.6,4129.5,1.56186194]
[1759139132800,3.20850508,4129.6,4129.5,1.56186194]
[1759139133598,3.80300508,4129.6,4129.5,1.00126194]
[1759139134003,3.65120508,4129.6,4129.5,1.56186194]
[1759139134209,3.43380508,4129.6,4129.5,1.56186194]
[1759139137603,3.65120508,4129.6,4129.5,1.56186194]
[1759139137906,3.80300508,4129.6,4129.5,0.75626194]
[1759139138208,3.80300508,4129.6,4129.5,0.43836194]
[1759139138705,8.80300508,4129.6,4129.5,0.43836194]
[1759139139509,3.80300508,4129.6,4129.5,0.43836194]
[1759139140404,4.32650659,4129.6,4129.5,0.43836194]
[1759139142308,0.1251,4129.0,4128.3,3.2078]
[1759139142509,0.7685,4128.6,4128.5,0.43584]
[1759139142714,0.7685,4128.6,4128.5,0.68084]
[1759139143213,0.7685,4128.6,4128.5,0.43584]
[1759139143407,0.7685,4128.6,4128.5,0.68298794]
[1759139144214,0.7685,4128.6,4128.5,0.64908794]
[1759139144407,0.7685,4128.6,4128.5,0.96698794]
[1759139144610,0.7685,4128.6,4128.5,1.21198794]
[1759139145112,0.7685,4128.6,4128.5,0.96698794]
[1759139145315,0.7685,4128.6,4128.5,1.21198794]
[1759139146518,0.7685,4128.6,4128.5,0.43798794]
[1759139146814,0.7685,4128.6,4128.5,0.96698794]
[1759139147012,0.7685,4128.6,4128.5,1.31648794]
[1759139148310,0.7685,4128.6,4128.5,0.43798794]
[1759139149713,0.7685,4128.6,4128.5,0.96698794]
[1759139152018,0.7685,4128.6,4128.5,1.19068794]
[1759139152515,0.4427,4128.6,4128.5,1.31648794]
[1759139152717,0.2253,4128.6,4128.5,1.31648794]
[1759139153017,0.7685,4128.6,4128.5,1.19068794]
[1759139153212,0.7685,4128.6,4128.5,0.96698794]